[Event "57th Biel Festival ATO 2024"]
[Site "Biel"]
[Date "2024.07.17"]
[Round "2.8"]
[White "Lachausse, Bruno"]
[Black "Oestmann, Lukas"]
[Result "0-1"]
[ECO "B21"]
[WhiteElo "1787"]
[BlackElo "1926"]
[Annotator "ChessBase"]
[PlyCount "96"]
[EventDate "2024.07.03"]
[EventType "swiss"]
[EventCountry "SUI"]
[SourceTitle "playchess.com"]
[Source "ChessBase"]
[SourceQuality "1"]
[TimeControl "40/5400+30:1800+30"]

1. e4 {[%emt 0:06:47]} c5 {[%emt 0:00:04]} 2. d4 {[%emt 0:00:21]} cxd4 {[%emt 0:00:05]} 3. c3 {[%emt 0:00:10]} dxc3 {[%emt 0:00:03]} 4. Nxc3 {[%emt 0:00:12]} d6 {[%emt 0:00:02]} 5. Bc4 {[%emt 0:00:42]} Nc6 {[%emt 0:00:04]} 6. Nf3 {[%emt 0:00:15]} a6 {[%emt 0:00:01]} 7. O-O {[%emt 0:00:14]} Nf6 {[%emt 0:00:02]} 8. h3 {[%emt 0:00:10]} e6 {[%emt 0:00:24]} 9. Qe2 {[%emt 0:00:18]} Be7 {[%emt 0:00:15]} 10. Rd1 {[%emt 0:00:17]} Qc7 {[%emt 0:00:46]} 11. Bf4 {[%emt 0:00:35]} Ne5 {[%emt 0:00:45]} 12. Bb3 {[%emt 0:01:47]} O-O {[%emt 0:00:41]} 13. Rac1 {[%emt 0:00:12]} Qb8 {[%emt 0:00:18]} 14. a4 {[%emt 0:07:56]} Bd7 {[%emt 0:06:36]} 15. Nd4 {[%emt 0:03:28]} Rd8 {[%emt 0:05:46]} 16. Be3 {[%emt 0:00:32]} Nc6 {[%emt 0:05:05]} 17. f4 {[%emt 0:03:18]} Nxd4 {[%emt 0:00:56]} 18. Bxd4 {[%emt 0:00:20]} Bc6 {[%emt 0:01:40]} 19. Bb6 {[%emt 0:05:14]} Re8 {[%emt 0:01:38]} 20. a5 {[%emt 0:12:02]} Nd7 {[%emt 0:08:03]} 21. Na4 {[%emt 0:05:11]} Bd8 {[%emt 0:10:19]} 22. Qe3 {[%emt 0:07:34]} Bxb6 {[%emt 0:02:59]} 23. Nxb6 {[%emt 0:00:27]} Nxb6 {[%emt 0:00:17]} 24. Qxb6 {[%emt 0:03:42]} Qd8 {[%emt 0:03:29]} 25. Qb4 {[%emt 0:01:20]} Qf6 {[%emt 0:03:21]} 26. g3 {[%emt 0:10:52]} Qxb2 {[%emt 0:03:40]} 27. Rc2 {[%emt 0:02:06]} Qf6 {[%emt 0:00:24]} 28. Rxd6 {[%emt 0:01:15]} Qg6 {[%emt 0:00:52]} 29. Rc3 {[%emt 0:18:12]} Qxe4 {[%emt 0:08:03]} 30. Qxe4 {[%emt 0:00:53]} Bxe4 {[%emt 0:00:03]} 31. Ba4 {[%emt 0:04:27]} Rec8 {[%emt 0:00:50]} 32. Re3 {[%emt 0:02:14]} Bd5 {[%emt 0:00:57]} 33. Bb3 {[%emt 0:01:14]} Rd8 {[%emt 0:01:54]} 34. Rb6 {[%emt 0:00:32]} Bc6 {[%emt 0:00:42]} 35. f5 {[%emt 0:00:55]} exf5 {[%emt 0:01:39]} 36. Re7 {[%emt 0:00:15]} Rf8 {[%emt 0:01:01]} 37. Rb4 {[%emt 0:01:13]} Rae8 {[%emt 0:00:57]} 38. Rc7 {[%emt 0:00:22]} Re4 {[%emt 0:00:34]} 39. Rb6 {[%emt 0:01:10]} g6 {[%emt 0:00:37]} 40. Kf2 {[%emt 0:00:00]} Re5 {[%emt 0:00:00]} 41. Rcxc6 {[%emt 0:05:22]} bxc6 {[%emt 0:03:51]} 42. Rxa6 {[%emt 0:00:07]} Rb8 {[%emt 0:00:39]} 43. Bc4 {[%emt 0:00:48]} Rc5 {[%emt 0:00:22]} 44. Be2 {[%emt 0:00:25]} Rb2 {[%emt 0:00:23]} 45. Ra8+ {[%emt 0:00:21]} Kg7 {[%emt 0:00:09]} 46. a6 {[%emt 0:01:21]} Re5 {[%emt 0:00:20]} 47. a7 {[%emt 0:00:43]} Rbxe2+ {[%emt 0:00:22]} 48. Kf3 {[%emt 0:00:17]} Ra2 {[%emt 0:00:10]} 0-1

[Event "57th Biel Festival ATO 2024"]
[Site "Biel"]
[Date "2024.07.17"]
[Round "2.9"]
[White "Jud, Marc"]
[Black "Cardoso Rodrigues, Michael"]
[Result "1/2-1/2"]
[ECO "A96"]
[WhiteElo "1925"]
[BlackElo "1796"]
[Annotator "RC"]
[PlyCount "55"]
[EventDate "2024.07.03"]
[EventType "swiss"]
[EventCountry "SUI"]
[SourceTitle "playchess.com"]
[Source "ChessBase"]
[SourceQuality "1"]
[TimeControl "40/5400+30:1800+30"]

1. d4 {[%emt 0:00:04]} f5 {[%emt 0:00:11]} 2. Nf3 {[%emt 0:00:27]} Nf6 {[%emt 0:00:19]} 3. g3 {[%emt 0:00:23]} e6 {[%emt 0:00:09]} 4. Bg2 {[%emt 0:00:18]} Be7 {[%emt 0:00:16]} 5. c4 {[%emt 0:00:07]} d6 {[%emt 0:00:08]} 6. O-O {[%emt 0:00:18]} O-O {[%emt 0:00:08]} 7. Nc3 {[%emt 0:00:21]} Ne4 {[%emt 0:00:07]} 8. Qc2 {[%emt 0:00:23]} Nxc3 {[%emt 0:00:09]} 9. bxc3 {[%emt 0:00:40]} Nc6 {[%emt 0:00:27]} 10. Ba3 {[%emt 0:03:36]} e5 {[%emt 0:04:50]} 11. c5 {[%emt 0:01:44]} e4 {[%emt 0:06:06]} 12. cxd6 {[%emt 0:01:02]} cxd6 {[%emt 0:02:03]} 13. Nd2 {[%emt 0:00:22]} d5 {[%emt 0:02:12]} 14. Bxe7 {[%emt 0:00:21]} Qxe7 {[%emt 0:01:21]} 15. e3 {[%emt 0:00:50]} Be6 {[%emt 0:06:06]} 16. Rab1 {[%emt 0:03:25]} Na5 {[%emt 0:02:48]} 17. Qa4 {[%emt 0:04:12]} b6 {[%emt 0:01:41]} 18. Rfc1 {[%emt 0:00:27]} Rfc8 {[%emt 0:02:04]} 19. Bf1 {[%emt 0:01:46]} Rc7 {[%emt 0:08:02]} 20. Ba6 {[%emt 0:01:26]} Bc8 {[%emt 0:01:07]} 21. Bf1 {[%emt 0:07:03]} Be6 {[%emt 0:03:18]} 22. Ba6 {[%emt 0:18:32]} Bc8 {[%emt 0:03:24]} 23. Be2 {[%emt 0:09:10]} Bb7 {[%emt 0:15:31]} 24. Qb4 {[%emt 0:03:20]} Rac8 {[%emt 0:03:15]} 25. Qxe7 {[%emt 0:03:17]} Rxe7 {[%emt 0:00:03]} 26. Rc2 {[%emt 0:00:56]} Rec7 {[%emt 0:01:24]} 27. Rbc1 {[%emt 0:01:04]} g6 {[%emt 0:03:25]} 28. Kf1 {[%emt 0:04:39]} 1/2-1/2

[Event "57th Biel Festival ATO 2024"]
[Site "Biel"]
[Date "2024.07.17"]
[Round "2.10"]
[White "Trachsel, Peter"]
[Black "Ribera Caro, Joan"]
[Result "1/2-1/2"]
[ECO "A13"]
[WhiteElo "1782"]
[BlackElo "1920"]
[Annotator "RC"]
[PlyCount "72"]
[EventDate "2024.07.03"]
[EventType "swiss"]
[EventCountry "SUI"]
[SourceTitle "playchess.com"]
[Source "ChessBase"]
[SourceQuality "1"]
[TimeControl "40/5400+30:1800+30"]

1. c4 {[%emt 0:00:09]} e6 {[%emt 0:00:14]} 2. Nf3 {[%emt 0:00:20]} d5 {[%emt 0:00:17]} 3. e3 {[%emt 0:00:34]} c5 {[%emt 0:00:44]} 4. Nc3 {[%emt 0:02:16]} d4 {[%emt 0:01:12]} 5. exd4 {[%emt 0:05:23]} cxd4 {[%emt 0:00:23]} 6. Ne4 {[%emt 0:00:48]} f5 {[%emt 0:05:39]} 7. Ng3 {[%emt 0:01:46]} d3 {[%emt 0:23:06]} 8. Ne5 {[%emt 0:06:48]} Qd4 {[%emt 0:10:48]} 9. Nxd3 {[%emt 0:09:53]} g6 {[%emt 0:18:16]} 10. Qc2 {[%emt 0:04:16]} e5 {[%emt 0:06:11]} 11. Qc3 {[%emt 0:05:33]} Nc6 {[%emt 0:01:34]} 12. Ne2 {[%emt 0:05:13]} Qd6 {[%emt 0:03:11]} 13. b3 {[%emt 0:05:22]} Bg7 {[%emt 0:00:43]} 14. Bb2 {[%emt 0:01:24]} Be6 {[%emt 0:07:08]} 15. Rd1 {[%emt 0:02:56]} O-O-O {[%emt 0:08:41]} 16. Ndc1 {[%emt 0:01:30]} Bf6 {[%emt 0:04:51]} 17. Qc2 {[%emt 0:06:46]} Nb4 {[%emt 0:00:35]} 18. Qb1 {[%emt 0:02:06]} e4 {[%emt 0:00:15]} 19. Nc3 {[%emt 0:03:05]} Qe5 {[%emt 0:04:41]} 20. Na4 {[%emt 0:02:18]} Nd3+ {[%emt 0:00:34]} 21. Nxd3 {[%emt 0:01:47]} Qa5 {[%emt 0:00:52]} 22. Nf4 {[%emt 0:02:47]} Bf7 {[%emt 0:00:27]} 23. Be2 {[%emt 0:06:28]} g5 {[%emt 0:00:06]} 24. Nh5 {[%emt 0:01:41]} Bxh5 {[%emt 0:00:32]} 25. Bxh5 {[%emt 0:00:20]} g4 {[%emt 0:00:31]} 26. Bf7 {[%emt 0:02:06]} f4 {[%emt 0:00:48]} 27. O-O {[%emt 0:03:57]} f3 {[%emt 0:01:03]} 28. Nc3 {[%emt 0:00:47]} fxg2 {[%emt 0:00:21]} 29. Rfe1 {[%emt 0:01:32]} Bd4 {[%emt 0:00:45]} 30. Nxe4 {[%emt 0:01:05]} Nh6 {[%emt 0:00:28]} 31. Bxd4 {[%emt 0:03:03]} Rxd4 {[%emt 0:00:10]} 32. Re2 {[%emt 0:01:32]} Nxf7 {[%emt 0:00:22]} 33. Qb2 {[%emt 0:01:17]} Rhd8 {[%emt 0:00:21]} 34. a3 {[%emt 0:01:52]} Ne5 {[%emt 0:00:54]} 35. b4 {[%emt 0:02:51]} Nf3+ {[%emt 0:00:08]} 36. Kxg2 {[%emt 0:00:57]} Qh5 {[%emt 0:01:05]} 1/2-1/2

[Event "57th Biel Festival ATO 2024"]
[Site "Biel"]
[Date "2024.07.17"]
[Round "2.11"]
[White "Kuenzli, Simon"]
[Black "Pantillon, Patrick Andre"]
[Result "1-0"]
[ECO "B02"]
[WhiteElo "1919"]
[BlackElo "1782"]
[Annotator "RC"]
[PlyCount "63"]
[EventDate "2024.07.03"]
[EventType "swiss"]
[EventCountry "SUI"]
[SourceTitle "playchess.com"]
[Source "ChessBase"]
[SourceQuality "1"]
[TimeControl "40/5400+30:1800+30"]

1. e4 {[%emt 0:00:06]} Nf6 {[%emt 0:00:13]} 2. Nc3 {[%emt 0:00:20]} d5 {[%emt 0:00:21]} 3. exd5 {[%emt 0:00:09]} Nxd5 {[%emt 0:00:17]} 4. Bc4 {[%emt 0:00:14]} c6 {[%emt 0:04:18]} 5. Qf3 {[%emt 0:03:05]} Be6 {[%emt 0:03:13]} 6. Nge2 {[%emt 0:02:34]} Qd7 {[%emt 0:02:52]} 7. O-O {[%emt 0:07:07]} Bg4 {[%emt 0:05:02]} 8. Qg3 {[%emt 0:02:21]} Bh5 {[%emt 0:05:01]} 9. Bxd5 {[%emt 0:09:34]} cxd5 {[%emt 0:03:34]} 10. Nf4 {[%emt 0:01:05]} Bg6 {[%emt 0:08:13]} 11. Ncxd5 {[%emt 0:07:57]} Na6 {[%emt 0:03:38]} 12. Ne3 {[%emt 0:04:43]} e6 {[%emt 0:03:08]} 13. Qh3 {[%emt 0:04:56]} Be4 {[%emt 0:06:18]} 14. d3 {[%emt 0:01:16]} Bc6 {[%emt 0:00:14]} 15. Nc4 {[%emt 0:01:19]} Bd6 {[%emt 0:06:23]} 16. Nxd6+ {[%emt 0:06:59]} Qxd6 {[%emt 0:00:19]} 17. Be3 {[%emt 0:03:01]} O-O-O {[%emt 0:02:44]} 18. Ne2 {[%emt 0:07:56]} Kb8 {[%emt 0:06:03]} 19. d4 {[%emt 0:04:03]} Ka8 {[%emt 0:00:51]} 20. c4 {[%emt 0:01:00]} f5 {[%emt 0:07:39]} 21. Bf4 {[%emt 0:05:53]} Qe7 {[%emt 0:03:46]} 22. Qe3 {[%emt 0:00:35]} Qf7 {[%emt 0:01:37]} 23. f3 {[%emt 0:04:11]} h6 {[%emt 0:05:59]} 24. Be5 {[%emt 0:01:30]} Rhg8 {[%emt 0:00:24]} 25. Rab1 {[%emt 0:00:43]} g5 {[%emt 0:02:05]} 26. b4 {[%emt 0:00:28]} g4 {[%emt 0:01:40]} 27. b5 {[%emt 0:05:03]} gxf3 {[%emt 0:02:29]} 28. Nf4 {[%emt 0:01:42]} Be4 {[%emt 0:08:29]} 29. bxa6 {[%emt 0:00:30]} bxa6 {[%emt 0:00:30]} 30. Rb2 {[%emt 0:01:59]} h5 {[%emt 0:04:00]} 31. Rxf3 {[%emt 0:03:20]} Rg4 {[%emt 0:03:19]} 32. Qb3 {[%emt 0:00:43]} 1-0

[Event "57th Biel Festival ATO 2024"]
[Site "Biel"]
[Date "2024.07.17"]
[Round "2.12"]
[White "Meshach, Felix"]
[Black "Aegerter, Fabrice"]
[Result "1-0"]
[ECO "C26"]
[WhiteElo "1773"]
[BlackElo "1917"]
[Annotator "RC"]
[PlyCount "69"]
[EventDate "2024.07.03"]
[EventType "swiss"]
[EventCountry "SUI"]
[SourceTitle "playchess.com"]
[Source "ChessBase"]
[SourceQuality "1"]
[TimeControl "40/5400+30:1800+30"]

1. e4 {[%emt 0:00:04]} e5 {[%emt 0:00:13]} 2. Nc3 {[%emt 0:00:05]} Nf6 {[%emt 0:00:06]} 3. Nf3 {[%emt 0:00:02]} Nc6 {[%emt 0:01:03]} 4. g3 {[%emt 0:00:07]} Bc5 {[%emt 0:05:00]} 5. Bg2 {[%emt 0:00:10]} d6 {[%emt 0:03:31]} 6. d3 {[%emt 0:01:00]} h6 {[%emt 0:00:17]} 7. O-O {[%emt 0:00:41]} O-O {[%emt 0:03:47]} 8. Na4 {[%emt 0:00:25]} Bb6 {[%emt 0:00:38]} 9. h3 {[%emt 0:01:50]} Nh7 {[%emt 0:07:19]} 10. Nxb6 {[%emt 0:03:09]} axb6 {[%emt 0:00:24]} 11. d4 {[%emt 0:01:06]} Qe8 {[%emt 0:05:21]} 12. Re1 {[%emt 0:07:26]} Ng5 {[%emt 0:13:53]} 13. Nxg5 {[%emt 0:06:19]} hxg5 {[%emt 0:00:12]} 14. d5 {[%emt 0:10:25]} Ne7 {[%emt 0:05:25]} 15. Bxg5 {[%emt 0:00:57]} f6 {[%emt 0:00:37]} 16. Bd2 {[%emt 0:03:53]} f5 {[%emt 0:05:35]} 17. f4 {[%emt 0:07:58]} Qg6 {[%emt 0:08:31]} 18. Kh2 {[%emt 0:01:15]} fxe4 {[%emt 0:01:31]} 19. fxe5 {[%emt 0:02:13]} dxe5 {[%emt 0:05:37]} 20. Rxe4 {[%emt 0:06:15]} Rf2 {[%emt 0:17:48]} 21. Re2 {[%emt 0:08:16]} Rxe2 {[%emt 0:02:40]} 22. Qxe2 {[%emt 0:00:11]} Qxc2 {[%emt 0:00:58]} 23. Qxe5 {[%emt 0:03:25]} Ng6 {[%emt 0:02:32]} 24. Qe8+ {[%emt 0:00:36]} Kh7 {[%emt 0:01:08]} 25. Qe2 {[%emt 0:04:22]} Bf5 {[%emt 0:01:51]} 26. Rc1 {[%emt 0:08:39]} Qd3 {[%emt 0:05:47]} 27. Qxd3 {[%emt 0:01:10]} Bxd3 {[%emt 0:00:09]} 28. Rxc7 {[%emt 0:00:59]} Rxa2 {[%emt 0:00:37]} 29. Bc3 {[%emt 0:01:44]} b5 {[%emt 0:01:07]} 30. Rxg7+ {[%emt 0:00:25]} Kh6 {[%emt 0:00:13]} 31. Rxb7 {[%emt 0:00:13]} Kg5 {[%emt 0:01:22]} 32. d6 {[%emt 0:02:17]} Ra8 {[%emt 0:00:40]} 33. Bd2+ {[%emt 0:00:52]} Kf6 {[%emt 0:00:22]} 34. Rxb5 {[%emt 0:01:10]} Re8 {[%emt 0:00:37]} 35. Rd5 {[%emt 0:00:45]} 1-0

[Event "57th Biel Festival ATO 2024"]
[Site "Biel"]
[Date "2024.07.17"]
[Round "2.13"]
[White "Retti, Marco"]
[Black "Kalbermatter, Philipp"]
[Result "0-1"]
[ECO "C10"]
[WhiteElo "1772"]
[BlackElo "1912"]
[Annotator "RC"]
[PlyCount "91"]
[EventDate "2024.07.03"]
[EventType "swiss"]
[EventCountry "SUI"]
[SourceTitle "playchess.com"]
[Source "ChessBase"]
[SourceQuality "1"]
[TimeControl "40/5400+30:1800+30"]

1. e4 {[%emt 0:00:05]} e6 {[%emt 0:00:24]} 2. d4 {[%emt 0:00:14]} d5 {[%emt 0:00:24]} 3. Nc3 {[%emt 0:00:11]} Nc6 {[%emt 0:00:59]} 4. e5 {[%emt 0:04:16]} f6 {[%emt 0:01:43]} 5. Bb5 {[%emt 0:02:13]} Bd7 {[%emt 0:03:25]} 6. Bxc6 {[%emt 0:04:05]} bxc6 {[%emt 0:04:29]} 7. Nf3 {[%emt 0:05:48]} c5 {[%emt 0:06:08]} 8. O-O {[%emt 0:03:01]} cxd4 {[%emt 0:03:56]} 9. Nxd4 {[%emt 0:04:38]} fxe5 {[%emt 0:04:27]} 10. Qh5+ {[%emt 0:00:11]} g6 {[%emt 0:00:21]} 11. Qxe5 {[%emt 0:00:08]} Qf6 {[%emt 0:00:21]} 12. Qxf6 {[%emt 0:09:01]} Nxf6 {[%emt 0:00:11]} 13. Re1 {[%emt 0:00:05]} Kf7 {[%emt 0:03:55]} 14. Nf3 {[%emt 0:01:36]} Bd6 {[%emt 0:02:26]} 15. Bh6 {[%emt 0:03:20]} Rhe8 {[%emt 0:03:41]} 16. h3 {[%emt 0:04:36]} Rab8 {[%emt 0:06:45]} 17. b3 {[%emt 0:16:17]} e5 {[%emt 0:03:09]} 18. Bd2 {[%emt 0:06:21]} e4 {[%emt 0:04:37]} 19. Nh2 {[%emt 0:04:35]} d4 {[%emt 0:02:34]} 20. Ne2 {[%emt 0:00:23]} c5 {[%emt 0:08:40]} 21. c4 {[%emt 0:01:17]} Rbd8 {[%emt 0:10:49]} 22. Rad1 {[%emt 0:02:07]} Bc6 {[%emt 0:03:16]} 23. Bg5 {[%emt 0:00:48]} Rd7 {[%emt 0:02:54]} 24. Bf4 {[%emt 0:02:08]} d3 {[%emt 0:05:00]} 25. Bxd6 {[%emt 0:01:47]} dxe2 {[%emt 0:00:37]} 26. Rxe2 {[%emt 0:00:10]} Red8 {[%emt 0:00:17]} 27. Red2 {[%emt 0:01:16]} e3 {[%emt 0:00:47]} 28. fxe3 {[%emt 0:02:08]} Ke6 {[%emt 0:04:08]} 29. Nf3 {[%emt 0:02:47]} Rxd6 {[%emt 0:00:22]} 30. Ng5+ {[%emt 0:02:36]} Ke7 {[%emt 0:00:14]} 31. Rxd6 {[%emt 0:00:09]} Rxd6 {[%emt 0:00:08]} 32. Rxd6 {[%emt 0:00:05]} Kxd6 {[%emt 0:00:07]} 33. Kf2 {[%emt 0:00:09]} Ne4+ {[%emt 0:01:44]} 34. Nxe4+ {[%emt 0:00:12]} Bxe4 {[%emt 0:00:09]} 35. g3 {[%emt 0:00:26]} Bb1 {[%emt 0:01:23]} 36. a3 {[%emt 0:00:17]} a5 {[%emt 0:01:18]} 37. Ke1 {[%emt 0:00:19]} Ba2 {[%emt 0:01:45]} 38. b4 {[%emt 0:00:36]} cxb4 {[%emt 0:00:19]} 39. Kd2 {[%emt 0:00:33]} Bxc4 {[%emt 0:01:39]} 40. h4 {[%emt 0:00:00]} bxa3 {[%emt 0:00:00]} 41. Kc3 {[%emt 0:00:56]} a2 {[%emt 0:01:04]} 42. Kb2 {[%emt 0:00:19]} h5 {[%emt 0:00:42]} 43. Ka1 {[%emt 0:00:32]} Ke5 {[%emt 0:00:30]} 44. g4 {[%emt 0:00:41]} hxg4 {[%emt 0:01:00]} 45. h5 {[%emt 0:00:10]} gxh5 {[%emt 0:00:16]} 46. Kb2 {[%emt 0:00:07]} 0-1

[Event "57th Biel Festival ATO 2024"]
[Site "Biel"]
[Date "2024.07.17"]
[Round "2.14"]
[White "Titov, Dmitrii"]
[Black "Yu, Tianxiang Carlos"]
[Result "0-1"]
[ECO "A45"]
[WhiteElo "1899"]
[BlackElo "1769"]
[Annotator "NA RC"]
[PlyCount "112"]
[EventDate "2024.07.03"]
[EventType "swiss"]
[EventCountry "SUI"]
[SourceTitle "playchess.com"]
[Source "ChessBase"]
[SourceQuality "1"]
[TimeControl "40/5400+30:1800+30"]

1. d4 {[%emt 0:00:03]} Nf6 {[%emt 0:04:17]} 2. Bf4 {[%emt 0:00:13]} g6 {[%emt 0:00:38]} 3. Nc3 {[%emt 0:00:15]} d5 {[%emt 0:00:13]} 4. e3 {[%emt 0:00:31]} Bg7 {[%emt 0:00:47]} 5. h4 {[%emt 0:01:08]} h5 {[%emt 0:00:08]} 6. Bd3 {[%emt 0:02:56]} O-O {[%emt 0:02:52]} 7. Nce2 {[%emt 0:05:19]} Nbd7 {[%emt 0:05:25]} 8. Nh3 {[%emt 0:12:05]} c5 {[%emt 0:04:08]} 9. c3 {[%emt 0:00:30]} Re8 {[%emt 0:07:23]} 10. Ng5 {[%emt 0:10:00]} e5 {[%emt 0:05:55]} 11. dxe5 {[%emt 0:00:18]} Nxe5 {[%emt 0:00:31]} 12. Bxe5 {[%emt 0:00:18]} Rxe5 {[%emt 0:00:24]} 13. O-O {[%emt 0:01:45]} b6 {[%emt 0:10:05]} 14. Nf4 {[%emt 0:05:13]} Bh6 {[%emt 0:11:10]} 15. Nfh3 {[%emt 0:03:18]} Qe7 {[%emt 0:03:56]} 16. Qc2 {[%emt 0:09:10]} Bxh3 {[%emt 0:13:06]} 17. Nxh3 {[%emt 0:00:14]} Ng4 {[%emt 0:01:56]} 18. g3 {[%emt 0:01:41]} Qd7 {[%emt 0:04:36]} 19. Nf4 {[%emt 0:03:00]} Rae8 {[%emt 0:03:13]} 20. a4 {[%emt 0:03:29]} c4 {[%emt 0:04:54]} 21. Be2 {[%emt 0:01:12]} Bxf4 {[%emt 0:00:10]} 22. gxf4 {[%emt 0:09:29]} Rf5 {[%emt 0:02:56]} 23. Bxg4 {[%emt 0:00:49]} hxg4 {[%emt 0:00:01]} 24. Kh2 {[%emt 0:06:09]} Rh5 {[%emt 0:03:07]} 25. Kg3 {[%emt 0:00:26]} d4 {[%emt 0:03:50]} 26. cxd4 {[%emt 0:02:23]} Qd5 {[%emt 0:00:42]} 27. Qd1 {[%emt 0:00:39]} Rxh4 {[%emt 0:04:22]} 28. Rh1 {[%emt 0:00:46]} Rxh1 {[%emt 0:02:03]} 29. Qxh1 {[%emt 0:00:02]} Qf5 {[%emt 0:00:43]} 30. Qd1 {[%emt 0:06:45]} Kg7 {[%emt 0:00:46]} 31. Qxg4 {[%emt 0:00:19]} Qc2 {[%emt 0:00:31]} 32. Rh1 {[%emt 0:08:25]} Rh8 {[%emt 0:00:36]} 33. Rxh8 {[%emt 0:00:26]} Kxh8 {[%emt 0:00:30]} 34. Qc8+ {[%emt 0:04:27]} Kg7 {[%emt 0:00:00]} 35. Qc6 {[%emt 0:01:06]} Qc1 {[%emt 0:00:00]} 36. Kg2 {[%emt 0:01:00]} Qc2 {[%emt 0:01:11]} 37. Qd5 {[%emt 0:00:43]} Qxa4 {[%emt 0:00:39]} 38. Qe5+ {[%emt 0:00:43]} Kh7 {[%emt 0:00:17]} 39. Qe7 {[%emt 0:01:48]} Qc6+ {[%emt 0:00:11]} 40. e4 {[%emt 0:00:00]} Qe6 {[%emt 0:00:00]} 41. Qxe6 {[%emt 0:04:08]} fxe6 {[%emt 0:01:35]} 42. Kf3 {[%emt 0:02:37]} Kg7 {[%emt 0:01:34]} 43. Ke3 {[%emt 0:03:19]} Kf6 {[%emt 0:02:33]} 44. Kd2 {[%emt 0:01:59]} b5 {[%emt 0:01:57]} 45. Kc3 {[%emt 0:00:54]} a5 {[%emt 0:24:52]} 46. b3 {[%emt 0:03:33]} cxb3 {[%emt 0:00:12]} 47. Kxb3 {[%emt 0:00:03]} Ke7 {[%emt 0:00:15]} 48. Ka3 {[%emt 0:00:33]} Kd6 {[%emt 0:00:26]} 49. Kb3 {[%emt 0:00:08]} b4 {[%emt 0:01:37]} 50. Kc4 {[%emt 0:01:24]} Kc6 {[%emt 0:00:54]} 51. Kb3 {[%emt 0:03:19]} Kb5 {[%emt 0:00:33]} 52. Kb2 {[%emt 0:01:23]} Kc4 {[%emt 0:00:40]} 53. d5 {[%emt 0:01:26]} exd5 {[%emt 0:00:26]} 54. f5 {[%emt 0:00:01]} gxf5 {[%emt 0:00:14]} 55. e5 {[%emt 0:01:10]} Kc5 {[%emt 0:00:33]} 56. f4 {[%emt 0:00:23]} d4 {[%emt 0:00:21]} 0-1

[Event "57th Biel Festival ATO 2024"]
[Site "Biel"]
[Date "2024.07.17"]
[Round "2.15"]
[White "Bangerter, Ena"]
[Black "Jordan, Theodor"]
[Result "1-0"]
[ECO "D00"]
[WhiteElo "1771"]
[BlackElo "1894"]
[Annotator "NA RC"]
[PlyCount "91"]
[EventDate "2024.07.03"]
[EventType "swiss"]
[EventCountry "SUI"]
[SourceTitle "playchess.com"]
[Source "ChessBase"]
[SourceQuality "1"]
[TimeControl "40/5400+30:1800+30"]

1. d4 {[%emt 0:00:05]} d5 {[%emt 0:00:07]} 2. Bf4 {[%emt 0:00:07]} c5 {[%emt 0:00:02]} 3. e3 {[%emt 0:00:15]} Nc6 {[%emt 0:00:03]} 4. c3 {[%emt 0:01:05]} Nf6 {[%emt 0:00:21]} 5. Nd2 {[%emt 0:00:18]} Bf5 {[%emt 0:00:07]} 6. Ngf3 {[%emt 0:01:37]} Qb6 {[%emt 0:01:24]} 7. Nh4 {[%emt 0:01:10]} Bd7 {[%emt 0:00:09]} 8. Qb3 {[%emt 0:02:08]} c4 {[%emt 0:02:37]} 9. Qc2 {[%emt 0:00:52]} Qa6 {[%emt 0:11:04]} 10. Be2 {[%emt 0:05:19]} e6 {[%emt 0:01:59]} 11. b3 {[%emt 0:15:54]} Na5 {[%emt 0:17:52]} 12. b4 {[%emt 0:06:49]} Nc6 {[%emt 0:02:22]} 13. a4 {[%emt 0:02:42]} b5 {[%emt 0:06:01]} 14. Qb1 {[%emt 0:07:14]} Be7 {[%emt 0:03:33]} 15. axb5 {[%emt 0:03:17]} Qxb5 {[%emt 0:00:28]} 16. Nhf3 {[%emt 0:01:47]} O-O {[%emt 0:01:57]} 17. O-O {[%emt 0:04:44]} Nh5 {[%emt 0:04:17]} 18. Ng5 {[%emt 0:06:03]} Bxg5 {[%emt 0:05:44]} 19. Bxg5 {[%emt 0:02:02]} Nf6 {[%emt 0:00:21]} 20. e4 {[%emt 0:03:08]} Nxe4 {[%emt 0:03:07]} 21. Bxc4 {[%emt 0:08:25]} dxc4 {[%emt 0:04:37]} 22. Nxe4 {[%emt 0:00:57]} e5 {[%emt 0:03:16]} 23. Nc5 {[%emt 0:04:26]} Bc8 {[%emt 0:05:29]} 24. d5 {[%emt 0:07:58]} Nb8 {[%emt 0:02:11]} 25. Ra5 {[%emt 0:03:57]} Qe8 {[%emt 0:00:45]} 26. Qa2 {[%emt 0:02:23]} f6 {[%emt 0:00:47]} 27. Be3 {[%emt 0:01:25]} Qg6 {[%emt 0:03:31]} 28. Qxc4 {[%emt 0:01:36]} f5 {[%emt 0:00:09]} 29. d6+ {[%emt 0:02:10]} Kh8 {[%emt 0:00:08]} 30. Qd5 {[%emt 0:00:48]} f4 {[%emt 0:00:21]} 31. Qxa8 {[%emt 0:01:18]} f3 {[%emt 0:00:25]} 32. g3 {[%emt 0:00:35]} Qh5 {[%emt 0:00:25]} 33. Nd3 {[%emt 0:01:32]} Qh3 {[%emt 0:01:18]} 34. Ne1 {[%emt 0:00:35]} Rf5 {[%emt 0:02:41]} 35. Nxf3 {[%emt 0:01:32]} Rf8 {[%emt 0:03:01]} 36. Qe4 {[%emt 0:01:09]} Bg4 {[%emt 0:00:22]} 37. Ng5 {[%emt 0:00:30]} Qh5 {[%emt 0:00:09]} 38. Rxe5 {[%emt 0:00:13]} Nd7 {[%emt 0:00:14]} 39. Re7 {[%emt 0:00:38]} Nf6 {[%emt 0:00:16]} 40. Qg2 {[%emt 0:00:00]} h6 {[%emt 0:00:00]} 41. h3 {[%emt 0:06:59]} Be2 {[%emt 0:01:43]} 42. Re1 {[%emt 0:01:36]} hxg5 {[%emt 0:00:43]} 43. g4 {[%emt 0:01:50]} Nxg4 {[%emt 0:00:04]} 44. hxg4 {[%emt 0:00:08]} Bxg4 {[%emt 0:00:03]} 45. d7 {[%emt 0:06:49]} Bh3 {[%emt 0:01:41]} 46. Qxg5 {[%emt 0:00:40]} 1-0